Cogmind - Beta 13 @@@ ROGUE MODE // 2024.04.02 @ 19:42:28 Player: CogEmotions! Result: Self-destructed Performance ------------- Evolutions (1) 500 Regions Visited (2) 400 Robots Destroyed (13) 65 Value Destroyed (479) 479 Prototype IDs (0) 0 Alien Tech Used (0) 0 Bonus (0) 0 TOTAL SCORE: 1444 Bonus ------- None Cogmind --------- Core Integrity 85/400 Matter 300/300 Energy 265/265 System Corruption 11% Temperature Cool (6) Movement Core (550) Ox10 Location -9/Materials Parts ------- > --- POWER (1) -------- Reinforced Ion Engine > --- PROPULSION (2) --- (None) > --- UTILITY (4) ------ Heat Sink Large Storage Unit > --- WEAPON (2) ------- (None) > --- INVENTORY (15) --- (None) Peak State ------------ > --- POWER ------------ Reinforced Ion Engine > --- PROPULSION ------- Light Treads Light Treads > --- UTILITY ---------- Heat Sink Small Storage Unit Small Battery Light Armor Plating > --- WEAPON ----------- Hammer > --- INVENTORY -------- (None) [Rating: 9] Favorites ----------- Power Light Ion Engine Engine Light Ion Engine Propulsion Light Treads Treads Light Treads Leg Aluminum Leg Utility Small Storage Unit Device Heat Sink Storage Small Storage Unit Protection Core Shielding Weapon Light Assault Rifle Energy Gun Small Laser Ballistic Gun Light Assault Rifle Impact Weapon Hammer Build | -11 -10 -9 ------- Run | Yrd Mat Mat Slots Evolved 2 | . . 2 Power . | . . . Propulsion . | . . . Utility 2 | . . 2 Weapon . | . . . Parts Attached 22 | 6 8 8 Power 3 | 1 1 1 Engine 3 | 1 1 1 Core . | . . . Reactor . | . . . Propulsion 6 | 2 2 2 Treads 4 | 2 . 2 Leg 2 | . 2 . Wheel . | . . . Hover . | . . . Flight . | . . . Utility 7 | 1 2 4 Device 1 | . . 1 Storage 3 | 1 . 2 Processor . | . . . Hackware . | . . . Protection 3 | . 2 1 Artifact . | . . . Weapon 6 | 2 3 1 Energy Gun 1 | . 1 . Energy Cannon . | . . . Ballistic Gun 4 | 2 2 . Ballistic Cannon . | . . . Launcher . | . . . Special Weapon . | . . . Impact Weapon 1 | . . 1 Slashing Weapon . | . . . Piercing Weapon . | . . . Special Melee Weapon . | . . . Unidentified Prototypes . | . . . Parts Lost 14 | . 5 9 Power 2 | . 1 1 Propulsion 4 | . 2 2 Utility 3 | . . 3 Weapon 5 | . 2 3 Highest Loss Streak 6 | . 5 6 To Critical Strikes . | . . . Average Slot Usage (%) 85 | . 93 62 Engine 11 | . 13 6 Treads 15 | . 18 9 Leg 7 | . 7 6 Device 1 | . . 5 Storage 14 | . 14 17 Protection 10 | . 12 5 Ballistic Gun 19 | . 24 6 Impact Weapon 1 | . . 6 Naked Turns . | . . . Heaviest Build 37 | 10 15 37 Greatest Support 40 | 40 40 40 Greatest Overweight (x) 10 | . 3 10 Average Overweight (x) . | . . . Largest Inventory Capacity 15 | 8 8 15 Average Capacity 8 | 6 8 10 Most Carried 4 | 4 2 3 Average Carried . | . . . Final Capacity 15 | 8 8 15 Final Carried . | . . . Class Distribution -------------------- 87% | Mutant 12% | Scavenger-Mutant Dominant Class ---------------- Mutant | -10/Materials Mutant | -9/Materials Resources | -11 -10 -9 ----------- Run | Yrd Mat Mat Matter Collected 488 | 192 216 80 Remotely . | . . . Salvage Created 554 | . 385 169 Parts 22 | . 16 6 Haulers Intercepted . | . . . Recyclers Shooed . | . . . Parts Field Recycled . | . . . Retrieved Matter . | . . . Parts Self-Destructed . | . . . Prevented . | . . . Kills | -11 -10 -9 ------- Run | Yrd Mat Mat Combat Hostiles Destroyed 13 | . 9 4 Melee 3 | . . 3 Guns 10 | . 9 1 Classes Destroyed 2 | . 1 1 Grunt 12 | . 9 3 Sentry 1 | . . 1 Best Kill Streak 3 | . 3 1 Combat Bots Only 3 | . 3 1 Max Kills in Single Turn 1 | . 1 1 Gunslinging . | . . . Exploded . | . . . Melee 1 | . . 1 Uniques/NPCs Destroyed . | . . . Combat | -11 -10 -9 -------- Run | Yrd Mat Mat Hostile Shots Fired 218 | . 93 125 Missed 45 | . 14 31 Damage Taken 2241 | . 1011 1230 Core 535 | . 220 315 Absorbed by Shields . | . . . Redirected to Shielding 47 | . 47 . Core Remaining (%) 56 | 100 12 . Volleys Fired 74 | . 61 13 Largest 2 | . 2 2 Hottest 40 | . 40 40 Shots Fired 113 | . 94 19 Gun 113 | . 94 19 Cannon . | . . . Launcher . | . . . Special . | . . . Kinetic 104 | . 85 19 Thermal 9 | . 9 . Explosive . | . . . Electromagnetic . | . . . Robot Hit Streak 8 | . 8 8 Robot Miss Streak 4 | . 4 1 Penetration Max . | . . . Secondary Targets . | . . . Shots Hit Robots 91 | . 63 28 Core Hits 36 | . 27 9 Critical Kills 1 | . . 1 Critical Parts Destroyed 2 | . . 2 Critical Strikes 3 | . . 3 Smash 3 | . . 3 Melee Attacks 17 | . . 17 Impact 17 | . . 17 Slashing . | . . . Piercing . | . . . Sneak Attacks 1 | . . 1 Combat Hostiles . | . . . Follow-up Attacks . | . . . Damage Inflicted 987 | . 534 453 Guns 628 | . 515 113 Cannons . | . . . Explosions . | . . . Melee 317 | . . 317 Ramming 42 | . 19 23 Kinetic 563 | . 450 113 Thermal 65 | . 65 . Explosive . | . . . Electromagnetic . | . . . Impact 317 | . . 317 Slashing . | . . . Piercing . | . . . Highest Corruption 11 | . 4 11 Average Corruption 5 | . 3 10 Corruption Purged . | . . . Corruption Blocked . | . . . Effects 23 | . 12 11 Message Errors 3 | . 2 1 Matter Fused 4 | . 2 2 Heat Flow Errors 10 | . 5 5 Energy Discharges 1 | . 1 . Parts Rejected 2 | . . 2 Data Loss (minor) 1 | . 1 . Misfires 1 | . 1 . Misdirections 1 | . . 1 Overload Shots . | . . . Overflow Damage 63 | . . 63 Projectiles . | . . . Explosions . | . . . Melee 63 | . . 63 Knockbacks 3 | . . 3 Impact 3 | . . 3 Kinetic . | . . . Secondary . | . . . Self-Inflicted Damage 9 | . 3 6 Shots . | . . . Rammed 22 | . 10 12 Targets Rammed 22 | . 10 12 Kicked . | . . . Crushed . | . . . Highest Temperature 273 | . 197 273 Average Temperature 53 | . 41 88 Received Heat Transfer 1221 | . 618 603 Siege Activations . | . . . Robots Corrupted . | . . . Combat Hostiles . | . . . Parts Fried . | . . . Impact Corruptions 3 | . . 3 Robots Melted . | . . . Combat Hostiles . | . . . Parts Melted . | . . . Heat Transferred 150 | . 150 . Parts Sabotaged . | . . . Parts Stolen . | . . . Parts Stripped . | . . . Power Chain Reactions . | . . . Alert | -11 -10 -9 ------- Run | Yrd Mat Mat Peak Influence 145 | . 145 101 Initial 61 | . . 61 Average 62 | . 64 69 Maximum Alert Level . | . . . Low Security (%) 100 | 100 100 100 Level 1 . | . . . Level 2 . | . . . Level 3 . | . . . Level 4 . | . . . Level 5 . | . . . High Security . | . . . Max Security . | . . . Squads Dispatched 3 | . 3 . Investigation 2 | . 2 . Extermination . | . . . Reinforcement 1 | . 1 . Assault . | . . . Garrison . | . . . Intercept . | . . . Searches Triggered . | . . . Construction Impeded . | . . . Haulers Reinforced . | . . . Active Scanning Responses . | . . . Cargo Convoy Interrupts . | . . . Stealth | -11 -10 -9 --------- Run | Yrd Mat Mat Distress Signals 2 | . 2 . Communications Jammed . | . . . Distress Signals . | . . . Times Spotted 24 | . 17 7 Peak Tracking Total 4 | . 4 4 Tactical Retreats . | . . . Traps | -11 -10 -9 ------- Run | Yrd Mat Mat Traps Triggered 5 | . 5 . Indirectly . | . . . Trap Hack Attempts . | . . . Triggered . | . . . Disarmed . | . . . Reprogrammed . | . . . Reused . | . . . Traps Extracted . | . . . Installed . | . . . Triggered . | . . . Machines | -11 -10 -9 ---------- Run | Yrd Mat Mat Machines Disabled . | . . . Max in Single Turn . | . . . Machines Repaired . | . . . Machines Dismantled . | . . . Machines Sabotaged . | . . . Overloaded Fab Kills . | . . . Hacking | -11 -10 -9 --------- Run | Yrd Mat Mat Machines Accessed 3 | . 2 1 Terminals 3 | . 2 1 Fabricators . | . . . Repair Stations . | . . . Recycling Units . | . . . Scanalyzers . | . . . Garrison Access . | . . . Total Hacks 5 | . 4 1 Successful 3 | . 2 1 Failed 2 | . 2 . Catastrophic . | . . . Database Lockouts . | . . . Manual . | . . . Terminals 5 | . 4 1 Fabricators . | . . . Repair Stations . | . . . Recycling Units . | . . . Scanalyzers . | . . . Garrison Access . | . . . Terminal Hacks 3 | . 2 1 Robot Analysis 1 | . 1 . Dispatch Records 1 | . 1 . Hauler Manifests 1 | . . 1 Fabricator Hacks . | . . . Repair Station Hacks . | . . . Recycling Unit Hacks . | . . . Scanalyzer . | . . . Garrison Access Hacks . | . . . Unauthorized Hacks . | . . . Terminals . | . . . Fabricators . | . . . Repair Stations . | . . . Recycling Units . | . . . Scanalyzers . | . . . Garrison Access . | . . . Data Cores Recovered . | . . . Used . | . . . Hacking Detections 2 | . 1 1 Full Trace Events . | . . . Feedback Events . | . . . Feedback Blocked . | . . . Robot Schematics Acquired . | . . . Robots Built . | . . . Authchips . | . . . Time . | . . . Total Robot Build Rating . | . . . Part Schematics Acquired . | . . . Parts Built . | . . . Authchips . | . . . Time . | . . . Total Part Build Rating . | . . . Parts Repaired . | . . . Time . | . . . Parts Recycled . | . . . Recycled Matter . | . . . Retrieved Matter . | . . . Retrieved Components . | . . . Parts Scanalyzed . | . . . Part Schematics Acquired . | . . . Parts Damaged . | . . . Bothacking | -11 -10 -9 ------------ Run | Yrd Mat Mat Used RIF Installer . | . . . Robots Hacked . | . . . Non-combat . | . . . Combat . | . . . Robot Hacks Applied . | . . . Relay Couplers Released . | . . . Fabnet Peak Effective % . | . . . Robots Rewired . | . . . Allies Hacked . | . . . Hacks Repelled . | . . . Allies | -11 -10 -9 -------- Run | Yrd Mat Mat Total Allies . | . . . Largest Group . | . . . Highest-Rated Group . | . . . Highest-Rated Ally . | . . . Total Orders . | . . . Ally Attacks . | . . . Total Damage . | . . . Kills . | . . . Allies Corrupted . | . . . Allies Melted . | . . . Intel | -11 -10 -9 ------- Run | Yrd Mat Mat Robot Analysis Total 1 | . 1 . Derelict Logs Recovered . | . . . Drone Launches . | . . . Drone Recoveries . | . . . Exploration | -11 -10 -9 ------------- Run | Yrd Mat Mat Turns Passed 1144 | 66 792 286 Spaces Moved 583 | 47 421 115 Core 58 | 24 12 22 Treads 321 | 23 251 47 Legs 204 | . 158 46 Wheels . | . . . Hover . | . . . Flight . | . . . Fastest Speed 50 | 50 100 100 Average Speed 142 | 103 145 146 Slowest Speed 550 | 160 200 550 Overloaded Moves . | . . . Propulsion Burnouts . | . . . Robots Hopped . | . . . Cave-ins Triggered . | . . . Exploration Rate (%) 22 | 3 56 7 Regions Visited 2 Branch Regions . Pre-discovered Areas . | . . . Known Exits Taken . | . . . Unknown Exits Taken 2 | 1 1 . Scrap Searched . | . . . Spaces Dug . | . . . Terrain Destroyed . | . . . Melee . | . . . Projectile . | . . . AOE . | . . . Terrain Rammed . | . . . Walls Destroyed . | . . . Machines Disabled . | . . . Actions | -11 -10 -9 --------- Run | Yrd Mat Mat Total 763 | 64 521 178 Wait 22 | 6 12 4 Move 581 | 46 420 115 Hop . | . . . Pick Up 22 | 6 8 8 Fast Attach . | . . . Attach 19 | 6 6 7 Detach . | . . . Swap 3 | . 2 1 Drop 3 | . 2 1 Fire 74 | . 61 13 Melee 17 | . . 17 Ram 8 | . 3 5 Kick . | . . . Crush 14 | . 7 7 Escape Stasis . | . . . Rewire . | . . . Trap . | . . . Miscellaneous . | . . . Route ------- -11/Scrapyard -10/Materials (discovered 2 exits: *Mat x2) -9/Materials History --------- Turn | Location | Event 9 | -11/Scrapyard | Discovered new exit (range 16) 67 | -11/Scrapyard | Entered Materials 257 | -10/Materials | Discovered new exit (range 11) 308 | -10/Materials | Build established: Mutant 592 | -10/Materials | Core integrity fell below 50% 619 | -10/Materials | Core integrity fell below 20% 624 | -10/Materials | Lost 5 parts (1p2n2w) 794 | -10/Materials | Discovered new exit (range 8) 859 | -10/Materials | Entered another Materials area 859 | -9/Materials | Evolved 2 slots: Utility x2 944 | -9/Materials | System corruption reached 10% 974 | -9/Materials | Lost 6 parts (1p2n1u2w) 1105 | -9/Materials | Core integrity fell below 50% 1145 | -9/Materials | Self-destructed Last Messages --------------- R-06 Scavenger destroyed. System corrupted: Heat flow error (+205). G-47 Trooper knocked back. R-06 Scavenger collects Sml. Laser. Lgt. Armor Plating destroyed. R-06 Scavenger collects Corrupted Tractor Beam. R-06 Scavenger collects Ion Engine. G-34 Mercenary destroyed. System corrupted: Lgt. Treads rejected. R-06 Scavenger collects Sml. Storage Unit. Hammer destroyed. Slammed into G-34 Mercenary. Sml. Battery destroyed. Slammed into G-34 Mercenary. G-34 Mercenary knocked back. EAJS171H:W%KV4HQ ALS>SS1 Slammed into G-34 Mercenary. K-01 Serf collects debris. System corrupted: Lgt. Treads rejected. R-06 Scavenger collects Lgt. Treads. Map ----- +----------------------------------------------------+ | ????????????????????????????????????????? | | ????????????????????????????????????????? | | ????????????????????????????????????????? | | ????????????????????????????????????????? | | ????????????????????????????????????????? | | ????????????????????????????????????????? | | ????????????????????????????????????????? | | ????????????????????????????????????????? | | ????????????????????????????????????????? | | ????????????????????????????????????????? | | ????????????????????????????????????????? | | ????????????????? #???????????????????? | | ????????????????? #???????????????????? | | ????????????????? #???????????????????? | | ????????????????? #???????????????????? | | ????????????????? #???????????????????? | | ????????????????? ###+????????????????? | | ????????????????? ?????????????????? | | ????????######??# ??????????????????? | | ???????##!! !##?# ???????????????????? | | ???????#! !#?# #???????????????????? | | ???????# #?# k #???????????????????? | | ######## = ##?# #???????????????????? | | # # [g #### ########????????????? | | # """ # %% u #????????????? | | # %""" r = @g #????????????? | | # """ # %%%%r% a #????????????? | | #% # ########### u#????????????? | | #% """ ## ########????????????????????? | | # %""" ## # T #????????????????????? | | # """ ## # #????????????????????? | | # ## + #????????????????????? | | # """## # #????????????????????? | | # Y"## # =! #????????????????????? | | # % """## # = #????????????????????? | | # ## ########????????????????????? | | ## ###### #???????????????????????????? | | ?###????# #???????????????????????????? | | ????????# #???????????????????????????? | | ????????# #???????????????????????????? | | ????????# #???????????????????????????? | | ????????# #???????????????????????????? | | ????????#####???????????????????????????? | | ????????????????????????????????????????? | | ????????????????????????????????????????? | | ????????????????????????????????????????? | | ????????????????????????????????????????? | | ????????????????????????????????????????? | | ????????????????????????????????????????? | | ????????????????????????????????????????? | +----------------------------------------------------+ Best States ------------- Heat Dissipation 38 Energy Generation 12 Energy Capacity 365 Matter Stores 300 Matter Capacity 300 Sight Range 16 Terrain Scan Density 10 Armor Coverage 150 Core Shielding 20 Evasion (%) 55 Recoil Reduction 2 Item Schematics ----------------- None Robot Schematics ------------------ None Fabricated ------------ Nothing Alien Tech Used ----------------- None Achievements -------------- Shopping List Challenges ------------ None Game ------ Seed RestorationChromaticTube Manual? 0 Play Time 00:16:59 Cumulative 4.2 hours Start 2024.04.02 @ 19:02:17 End 2024.04.02 @ 19:42:28 Sessions 1 Manual Loads 0 Difficulty Rogue Special Mode None Game No. 9 Rogue 9 Adventurer 0 Explorer 0 Win Type - Total 0 Types 0/0/0/0/0/0/0/0/0 Lore% 3 Gallery% 9 Achievement% 8 Wizard Run 0 Options --------- Layout 1 ASCII 0 Keyboard 0 Movement Mouse Keybinds 0 Fullscreen 1 Font 24/Smallcaps Map View 50x35 Zoom Use 0% Tactical HUD 0 Map Filters NONE Filters NONE Steam 1 RUN: 0c24d781-2019-4619-965b-d3489ade9ef0